{"text_format":"3","workbook":"xlsx","n_sheets":1,"sheets":["Hoja1 (2)"],"not_rendered":{"images":4,"defined_names":1},"read":"whole","date_system":"1900"}

{"sheet":"Hoja1 (2)","index":0,"n_rows":48,"n_cols":9,"rows_kept":48,"merged":[[0,0,0,8],[1,0,1,4],[1,5,1,8],[3,0,8,0],[3,1,7,1],[3,2,8,2],[9,0,14,0],[9,1,13,1],[9,2,14,2],[15,0,18,0],[15,1,18,1],[15,2,18,2],[19,0,22,0],[19,1,21,1],[19,2,21,2],[32,0,34,0],[32,1,34,1],[32,2,34,2],[37,0,45,0],[37,1,45,1],[37,2,45,2],[47,0,47,5]]}
["ANEXO No. 2 - FORMULARIO DE PRECIOS Y CANTIDADES"]
["Razón Social:",{"$nulls":4},"NIT:"]
["ITEM","DESCRIPCIÓN","MOTIVO","CANTIDAD","OPCIONES A COTIZAR","IMAGEN REFERENCIA","VALOR UNIDAD","IVA O IMPUESTO","VALOR TOTAL"]
[1,"Desayuno en las instalaciones de la ESU  ","Día de la Madre - 8 de mayo",1,"Menaje","60 personas",null,null,{"$f":"G4+H4","v":0}]
[{"$nulls":3},2,"Meseros","4 horas ",null,null,{"$f":"G5+H5","v":0}]
[{"$nulls":3},60,"Porciones de fruta (mando, fresa, kiwi)",{"$nulls":3},0]
[{"$nulls":3},60,"Omelette con maicitos y tocineta servido tipo buffet a la mesa, en las instalaciones de la ESU",{"$nulls":3},0]
[{"$nulls":3},60,"Café capuchino caliente",{"$nulls":3},0]
[null,"Apoyo logistico Evento",null,1,"Evento con Emisora Bésame",{"$nulls":3},0]
[2,"Desayuno en las instalaciones de la ESU ","Día del Padre - 19 de  Junio",1,"Menaje","55 personas ",null,null,0]
[{"$nulls":3},2,"Meseros","4 horas ",null,null,0]
[{"$nulls":3},55,"Porciones de fruta (mando, fresa, kiwi)",{"$nulls":3},0]
[{"$nulls":3},55,"Omelette con champiñones y queso servido tipo buffet a la mesa, en las instalaciones de la ESU",{"$nulls":3},0]
[{"$nulls":3},55,"Café capuchino caliente",{"$nulls":3},0]
[null,"Apoyo logistico Evento",null,1,"Grupo musical (ejemplo:Trovadores, Dueto, etc.)",{"$nulls":3},0]
[3,"Tarde Recreativa","Día del niño y la recreación - Viernes 24 de abril",40,"Cajita de alimentación  (1 presa de pollo muslo, papa a la francesa, jugo de cajita)",{"$nulls":3},0]
[{"$nulls":3},40,"Chococono de marca reconocida",{"$nulls":3},0]
[{"$nulls":3},"40 und de cada uno","Mesa de dulces -bombones, chitos, rosquitas, masmelos, chocolatina jet","Incluye transporte, 1 meson, mantel soportes y 40 unidades de lo solicitado sin servicio",null,null,0]
[{"$nulls":3},45,"Termo pitillo con logo de la ESU",{"$nulls":3},0]
[4,"Tarde Lúdica","Día del Servidor-26 de junio",130,"Cajita con mini palito de queso, mini empanada, rollito de jamón y tocineta",{"$nulls":3},0]
[{"$nulls":3},130,"Cocteles sin licor (mimosa)",{"$nulls":3},0]
[{"$nulls":3},2,"Meseros","4 horas ",null,null,0]
[null,"Refrigerios ","Bienvenida a la Navidad",150,"Cajita de natilla con buñuelo y hojuela",{"$nulls":3},0]
[5,"Souvenir","Amor y amistad",130,"Opc.1 Chocolate brandeado",{"$nulls":3},0]
[6,"Plan Bienestar","Reconocimiento a labores de apoyo (comites, grupos, entre otros)",40,"Sombrilas con imagen corporativa Primer Semestre color negro y gris-Primer Semestre",{"$nulls":3},0]
[7,"Plan Bienestar","Reconocimiento a labores de apoyo (comites, grupos, entre otros)",40,"Kit de spray de aromaterapia (3 und empacado cajita o bolsa)-Segundo Semestre",{"$nulls":3},0]
[8,"Plan Bienestar","Grados",7,"Cajita en madera con frutos secos y chocolate",{"$nulls":3},0]
[9,"Seguridad y Salud en el trabajo","Semana de la Salud ",130,"Manilla de identificación vital",{"$nulls":3},0]
[10,"Plan Bienestar","Hallowen",180,"Carrito de paletas turrón de marca reconocida (carrito tilin)-Peimnados divertidos",{"$nulls":3},0]
[11,"Plan Bienestar","Souvenir Cumpleaños 2027",70,"Lonchera para almuerzos similar a la imagen",{"$nulls":3},0]
[12,"Plan Bienestar","Cartas para uno",130,"Impresión de 130 juegos de cartas\nEstas son las especificaciones para las cartas: Propalcote con acabado mate, gramaje de 250 - 300. almacenadas en una caja de carton con las mismas dimensiones",{"$nulls":3},0]
[13,"Plan Bienestar","Torta de cumpleaños para 150 personas",1,"Cumpleaños de la ESU",{"$nulls":3},0]
[14,"Plan Bienestar","Despedida fin de año - Diciembre",150,"Copa de coctel sin licor para brindis",{"$nulls":3},0]
[{"$nulls":3},350,"Pasabocas dips salados y dulces ","incluye transporte, meson, personal  los 350 pasabocas",null,null,0]
[{"$nulls":3},2,"Meseros","4 horas ",null,null,0]
[15,"Plan Bienestar","Torneo de futbol",1,"Dos torneos de futbol al año","cada uno",null,null,0]
[16,"Plan Bienestar","Torneo de bolos",1,"Dos toneos de bolos en el año","cada uno",null,null,0]
[17,"Plan Bienestar","Refrigerios (en empaques que no generen impacto al medio ambiente)",1,"Refrigerios - Sanduche de carnes + jugo natural en pet + fruta picada",{"$nulls":3},0]
[{"$nulls":3},1,"Parfait de yogurt griego, cereal y frutos rojos o  amarillos",{"$nulls":3},0]
[{"$nulls":3},300,"Galletas de la fortuna",{"$nulls":3},0]
[{"$nulls":3},300,"chocolates corporativos (brandeados",{"$nulls":3},0]
[{"$nulls":3},450,"Capuchinos en vaso con tapa",{"$nulls":3},0]
[{"$nulls":3},1,"Refrigerio - Sánduche en pan danés con jamón y queso - lechuga y salsa de la casa - Jugo en botella de vidrio y papas chips ",{"$nulls":3},0]
[{"$nulls":3},1,"Cajitas con mini empana, mini palito, mini pastel de pollo y jugo en cajita",{"$nulls":3},0]
[{"$nulls":3},1,"Refrigerios -  WRAP primaveral de jamón y queso - Jugo de Naranja natural en botella de vidrio y fruta entera (manzana) ",{"$nulls":3},0]
[{"$nulls":3},1,"Refrigerios -  pastel de jamón y queso - Jugo de Naranja natural en botella de vidrio y fruta entera (manzana) ",{"$nulls":3},0]
[18,"Plan Bienestar","Actividades SST",50,"Distintivos para diferentes grupos de apoyo de la entidad con logos corporativos (chalecos, camisetas, gorras, riñoneras, brasaletes, botones, banderines)",{"$nulls":3},0]
["GRAN TOTAL",{"$nulls":5},{"$f":"SUM(G4:G47)","v":0},{"$f":"SUM(H4:H47)","v":0},{"$f":"SUM(I4:I47)","v":0}]